bitfinex-derivatives/quotes_SOLF0:USTF0_20250518
["timestamp","ask_amount","ask_price","bid_price","bid_amount"]
[1747538297551,7.43503161,167.25,167.24,5.9774]
[1747538299860,13.41063161,167.29,167.25,5.977]
[1747538300057,5.9764,167.27,167.21,60.6]
[1747538300653,5.9762,167.28,167.23,5.9776]
[1747538300957,5.9762,167.28,167.21,60.6]
[1747538300958,60.58,167.27,167.21,60.6]
[1747538301256,60.58,167.27,167.24,5.9772]
[1747538304069,60.58,167.27,167.21,60.6]
[1747538304463,68.03503161,167.29,167.21,60.6]
[1747538304665,121.18,167.29,167.21,60.6]
[1747538305667,127.1557,167.29,167.21,60.6]
[1747538305971,127.1557,167.29,167.24,5.9771]
[1747538306567,127.1557,167.29,167.25,5.977]
[1747538306963,5.9761,167.28,167.24,5.9774]
[1747538307167,121.18,167.29,167.21,60.6]
[1747538307368,3.9635,167.28,167.21,60.6]
[1747538307667,5.9766,167.27,167.23,5.9777]
[1747538309672,5.977,167.26,167.22,5.9779]
[1747538309972,60.56,167.25,167.18,60.56]
[1747538310173,66.5372,167.25,167.18,60.56]
[1747538310375,66.5372,167.25,167.21,5.9783]
[1747538311673,5.9776,167.24,167.21,5.9783]
[1747538312874,121.12,167.25,167.16,60.56]
[1747538313075,121.12,167.25,167.15,60.56]
[1747538313471,121.12,167.25,167.18,5.9796]
[1747538314077,5.9784,167.22,167.18,5.9796]
[1747538314280,60.56,167.21,167.18,5.9796]
[1747538314977,60.56,167.21,167.19,5.979]
[1747538323183,66.5386,167.21,167.15,60.56]
[1747538324273,60.56,167.21,167.15,60.56]
[1747538324874,5.9791,167.2,167.17,5.9797]
[1747538327284,121.12,167.21,167.12,64.4393]
[1747538327478,67.99503161,167.24,167.12,64.4393]
[1747538327680,7.43503161,167.24,167.23,5.9778]
[1747538330890,141.9988971,167.3,167.26,5.9764]
[1747538330891,127.1153,167.3,167.26,5.9764]
[1747538331185,121.12,167.3,167.22,60.58]
[1747538332586,121.12,167.3,167.28,5.9759]
[1747538332780,60.54,167.3,167.28,5.9759]
[1747538333081,60.54,167.3,167.22,60.58]
[1747538333286,7.43503161,167.31,167.22,60.58]
[1747538333491,67.97503161,167.32,167.22,60.58]
[1747538333891,73.94963161,167.32,167.28,5.9758]
[1747538334490,5.9753,167.3,167.25,5.9771]
[1747538334790,67.97503161,167.32,167.22,60.58]
[1747538335590,5.9751,167.31,167.27,5.9763]
[1747538336288,13.41013161,167.31,167.27,5.9763]
[1747538336775,7.43503161,167.31,167.22,60.58]
[1747538336979,5.9757,167.29,167.22,60.58]
[1747538337375,5.9757,167.29,167.26,5.9767]
[1747538338591,13.41013161,167.31,167.26,5.9767]
[1747538338889,7.43503161,167.3,167.27,5.9762]
[1747538340389,13.41033161,167.3,167.26,5.9766]
[1747538340591,7.43503161,167.3,167.26,5.9766]
[1747538340889,7.43503161,167.3,167.22,60.58]
[1747538341191,13.41043161,167.3,167.27,5.9761]
[1747538342187,5.9754,167.3,167.27,5.9761]
[1747538342891,5.9757,167.29,167.26,5.9766]
[1747538343405,60.5,167.28,167.26,5.9766]
[1747538343689,5.9766,167.27,167.23,5.9776]
[1747538343889,60.5,167.27,167.23,5.9776]
[1747538344385,62.5017,167.27,167.23,5.9776]
[1747538344588,66.362,167.27,167.18,60.5]
[1747538345293,5.9769,167.26,167.23,5.9777]
[1747538345983,66.362,167.27,167.18,60.5]
[1747538347597,5.9773,167.25,167.22,5.9781]
[1747538348989,5.9774,167.24,167.22,5.9781]
[1747538350096,5.9772,167.25,167.22,5.9781]
[1747538353094,73.79703161,167.27,167.18,60.5]
[1747538353291,128.43503161,167.27,167.18,60.5]
[1747538353495,7.43503161,167.27,167.18,60.5]
[1747538353698,7.43503161,167.27,167.26,5.9767]
[1747538353894,7.43503161,167.28,167.23,60.5]
[1747538354197,7.43503161,167.28,167.24,60.5]
[1747538354502,7.43503161,167.28,167.27,5.9764]
[1747538355701,7.43503161,167.28,167.24,60.5]
[1747538356201,7.43503161,167.28,167.25,5.9768]
[1747538356591,7.43503161,167.28,167.22,60.5]
[1747538356794,5.5722993,167.29,167.26,5.9765]
[1747538358991,72.0277993,167.3,167.27,5.9763]
[1747538361297,72.0277993,167.3,167.28,5.976]
[1747538361604,66.0522993,167.3,167.22,60.5]
[1747538361801,66.0522993,167.3,167.29,5.9756]
[1747538362005,5.5722993,167.3,167.29,5.9756]
[1747538364599,5.5722993,167.32,167.3,5.9749]
[1747538365499,66.0322993,167.32,167.3,5.9749]
[1747538366407,66.0322993,167.32,167.25,60.5]
[1747538366801,66.0322993,167.32,167.3,5.9751]
[1747538367004,5.5722993,167.32,167.25,60.5]
[1747538367397,5.5722993,167.32,167.31,5.9749]
[1747538368506,5.5722993,167.32,167.3,5.9752]
[1747538368806,5.5722993,167.32,167.25,60.5]
[1747538369905,5.5722993,167.32,167.3,5.975]
[1747538372407,5.5722993,167.32,167.31,5.9749]
[1747538373807,66.0122993,167.32,167.22,60.44]
[1747538374112,69.8547993,167.32,167.22,60.44]
[1747538374300,5.9755,167.3,167.27,5.9761]
[1747538374500,60.44,167.29,167.27,5.9761]
[1747538376402,66.0122993,167.29,167.27,5.9761]
[1747538378808,71.9879993,167.29,167.22,60.44]
[1747538379108,66.0122993,167.29,167.22,60.44]
[1747538380008,5.9762,167.28,167.25,5.9767]
[1747538380202,66.0122993,167.29,167.22,60.44]
[1747538380616,71.9881993,167.29,167.26,5.9766]
[1747538382317,11.5482993,167.28,167.26,5.9766]
[1747538382811,11.5482993,167.28,167.25,5.9768]
[1747538383214,5.5722993,167.28,167.22,60.44]
[1747538383416,5.5722993,167.28,167.26,5.9766]
[1747538388921,66.0122993,167.28,167.19,60.44]
[1747538389622,5.9771,167.25,167.22,5.9779]
[1747538389818,5.9771,167.25,167.19,60.44]
[1747538390116,5.9765,167.27,167.24,5.9774]
[1747538390726,5.9768,167.26,167.24,5.9774]
[1747538391723,5.9768,167.26,167.23,5.9776]
[1747538393322,60.42,167.25,167.23,5.9776]
[1747538395127,60.42,167.25,167.16,7.51495487]
[1747538395319,60.42,167.25,167.16,67.95495487]
[1747538396226,60.44,167.24,167.16,67.95495487]
[1747538397325,5.9782,167.22,167.19,5.979]
[1747538399932,65.70771224,167.24,167.18,5.9795]
[1747538400536,5.9784,167.22,167.18,5.9795]
[1747538401333,60.4,167.21,167.17,5.9798]
[1747538402638,5.9791,167.2,167.17,5.9798]
[1747538403134,11.5513993,167.2,167.17,5.9798]
[1747538405942,5.5722993,167.2,167.14,60.46]
[1747538406443,5.5722993,167.2,167.18,5.9793]
[1747538406742,60.4,167.21,167.18,5.9793]
[1747538407044,60.4,167.21,167.17,5.9798]
[1747538408039,60.4,167.2,167.15,5.9805]
[1747538408240,60.4,167.2,167.11,60.4]
[1747538408542,5.9796,167.18,167.11,60.4]
[1747538409045,5.9796,167.18,167.15,5.9803]
[1747538409341,60.4,167.17,167.15,5.9803]
[1747538410138,60.4,167.17,167.11,60.4]
[1747538410351,66.38,167.17,167.14,5.981]
[1747538411741,60.4,167.17,167.15,5.9806]
[1747538412244,60.4,167.17,167.11,60.4]
[1747538412445,60.4,167.17,167.15,5.9806]
[1747538418843,60.4,167.17,167.11,60.4]
[1747538419045,60.4,167.17,167.1,3.911]
[1747538419652,66.3801,167.17,167.1,3.911]
[1747538420847,66.3801,167.17,167.1,1.9455]
[1747538421043,60.42,167.16,167.06,62.2803]
[1747538421753,5.9812,167.14,167.06,62.2803]
[1747538422056,60.38,167.13,167.06,62.2803]
[1747538422251,60.38,167.13,167.11,5.9818]
[1747538422445,60.38,167.13,167.06,62.2803]
[1747538423252,60.38,167.13,167.12,5.9817]
[1747538423752,60.38,167.13,167.06,62.2803]
[1747538424455,60.38,167.13,167.1,5.9822]
[1747538425252,66.3614,167.13,167.1,5.9822]
[1747538425456,60.38,167.13,167.11,5.9819]
[1747538431263,3.37545679,167.12,167.11,5.9819]
[1747538432868,71.9726993,167.16,167.06,63.79545679]
[1747538433162,63.75545679,167.15,167.08,3.37545679]
[1747538433768,3.37545679,167.15,167.14,5.981]
[1747538435274,120.8,167.16,167.14,5.981]
[1747538436872,126.7803,167.16,167.13,5.9812]
[1747538437063,120.8,167.16,167.13,5.9812]
[1747538437265,120.8,167.16,167.07,62.4204]
[1747538437461,120.8,167.16,167.14,5.9807]
[1747538437671,60.42,167.16,167.07,62.4204]
[1747538437980,5.5722993,167.17,167.08,62.3585]
[1747538438179,5.5722993,167.17,167.16,5.9803]
[1747538439576,7.43503161,167.19,167.18,5.9796]
[1747538440580,60.36,167.23,167.19,5.9791]
[1747538440767,60.36,167.23,167.16,60.36]
[1747538440768,65.63150776,167.23,167.12,60.36]
[1747538441278,5.9791,167.2,167.15,5.9805]
[1747538441483,60.36,167.19,167.1,5.55865487]
[1747538441670,60.36,167.19,167.1,65.91865487]
[1747538441871,5.9796,167.18,167.1,65.91865487]
[1747538443076,5.9796,167.18,167.14,5.9809]
[1747538443281,5.98,167.17,167.14,5.9809]
[1747538445882,5.9803,167.16,167.13,5.9812]
[1747538446085,60.36,167.19,167.1,60.36]
[1747538446386,5.981,167.14,167.1,5.9821]
[1747538446590,60.34,167.14,167.07,60.36]
[1747538446784,120.7,167.14,167.07,60.36]
[1747538446982,5.9819,167.12,167.05,7.44785487]
[1747538447789,120.7,167.14,167.05,7.44785487]
[1747538448282,5.982,167.12,167.08,5.9828]
[1747538448483,5.982,167.12,167.05,5.55865487]
[1747538449389,5.982,167.12,167.04,60.36]
[1747538449588,5.982,167.12,167.09,5.9828]
[1747538452885,5.9816,167.13,167.03,579.1531]
[1747538453090,126.559,167.14,167.03,579.1531]
[1747538453389,5.9815,167.13,167.09,5.9825]
[1747538455789,5.9817,167.12,167.09,5.9825]
[1747538455992,126.559,167.14,167.1,5.9824]
[1747538456593,5.9816,167.13,167.1,5.9824]
[1747538457393,5.9818,167.12,167.1,5.9824]
[1747538457689,126.559,167.14,167.03,579.1531]
[1747538458495,5.9818,167.12,167.09,5.9824]
[1747538460291,5.9822,167.11,167.03,579.1531]
[1747538461391,5.9822,167.11,167.08,5.9829]
[1747538461892,5.9822,167.11,167.09,5.9828]
[1747538462083,5.9818,167.12,167.09,5.9828]
[1747538464792,5.9821,167.11,167.09,5.9828]
[1747538469099,5.9818,167.12,167.09,5.9828]
[1747538469401,5.859,167.14,167.03,62.3931]
[1747538469592,60.32,167.14,167.03,62.3931]
[1747538469898,5.981,167.14,167.04,1.9708]
[1747538470099,66.301,167.14,167.04,1.9708]
[1747538470597,66.301,167.14,167.11,5.982]
[1747538471098,5.9814,167.13,167.1,5.9824]
[1747538471397,60.32,167.14,167.07,60.32]
[1747538471588,66.301,167.14,167.11,5.9818]
[1747538472100,60.32,167.14,167.11,5.9818]
[1747538472303,67.75503161,167.15,167.07,60.32]
[1747538472496,128.07503161,167.15,167.07,60.32]
[1747538472695,67.75503161,167.15,167.07,60.32]
[1747538472890,7.43503161,167.15,167.14,5.981]
[1747538473603,60.32,167.18,167.15,5.9804]
[1747538476906,60.3,167.2,167.11,60.32]
[1747538477101,60.3,167.2,167.11,64.1632]
[1747538477304,60.3,167.2,167.16,5.9801]
[1747538477603,66.2791,167.2,167.11,64.1632]
[1747538477804,60.3,167.2,167.11,64.1632]
[1747538478105,5.9795,167.19,167.11,64.1632]
[1747538478406,5.9795,167.19,167.16,5.9802]
[1747538480207,60.3,167.2,167.14,5.9807]
[1747538480400,65.57150776,167.2,167.11,60.32]
[1747538480600,5.9216,167.19,167.11,60.32]
[1747538480804,5.9216,167.19,167.08,120.62]
[1747538481102,5.9806,167.16,167.12,5.9815]
[1747538481297,60.3,167.16,167.07,60.32]
[1747538482302,5.9814,167.13,167.1,5.9822]
[1747538482503,67.73503161,167.16,167.07,60.32]
[1747538483109,5.9813,167.14,167.1,5.9822]
[1747538484012,5.9816,167.13,167.1,5.9822]
[1747538484311,67.73503161,167.16,167.09,5.9827]
[1747538485013,5.9817,167.13,167.09,5.9827]
[1747538485311,67.73503161,167.16,167.07,60.32]
[1747538485514,5.982,167.12,167.04,120.6]
[1747538485710,66.262,167.12,167.04,120.6]
[1747538487622,66.262,167.12,167.08,5.9828]
[1747538489319,5.9822,167.11,167.08,5.9828]
[1747538489821,60.28,167.12,167.09,5.9827]
[1747538490418,66.2617,167.12,167.09,5.9827]
[1747538491218,60.32,167.13,167.04,60.32]
[1747538491419,120.6,167.13,167.04,60.32]
[1747538492619,126.5814,167.13,167.1,5.9824]
[1747538493521,126.5814,167.13,167.09,5.9826]
[1747538494124,126.5814,167.13,167.1,5.9824]
[1747538496526,120.6,167.13,167.08,5.9829]
[1747538497017,5.9818,167.12,167.09,5.9827]
[1747538497629,126.5814,167.13,167.04,60.32]
[1747538498838,60.32,167.13,167.01,5.55865487]
[1747538499023,62.3001,167.12,167.02,60.28]
[1747538499426,5.9827,167.1,167.06,5.9836]
[1747538499831,11.56995304,167.1,167.06,5.9836]
[1747538500026,5.58725304,167.1,167.02,60.28]
[1747538501632,75.85595304,167.13,167.1,5.9824]
[1747538501832,75.85595304,167.13,167.02,60.28]
[1747538503641,75.85595304,167.13,167.1,5.9822]
[1747538505239,69.87435304,167.13,167.02,60.28]
[1747538505441,64.2871,167.13,167.02,65.83865487]
[1747538505740,5.9818,167.12,167.08,5.9829]
[1747538505933,5.9818,167.12,167.02,65.83865487]
[1747538506127,64.2871,167.13,167.02,65.83865487]
[1747538506338,64.2871,167.13,167.09,5.9825]
[1747538507640,5.9818,167.12,167.09,5.9825]
[1747538508237,64.2871,167.13,167.02,5.55865487]
[1747538508541,5.27871941,167.1,167.02,5.55865487]
[1747538508845,5.9839,167.06,167.02,11.54375487]
[1747538509638,5.9843,167.05,167.02,11.54375487]
[1747538509843,120.54,167.09,167.02,5.55865487]
[1747538510143,5.9834,167.08,167.02,5.55865487]
[1747538510644,5.9834,167.08,167.04,5.9843]
[1747538512040,5.9836,167.07,167.04,5.9843]
[1747538516349,5.9832,167.08,167.05,5.9842]
[1747538516648,126.12725304,167.09,167.0,60.28]
[1747538517547,5.9836,167.07,167.04,5.9844]
[1747538518951,126.12725304,167.09,167.0,60.28]
[1747538519441,5.9841,167.06,167.02,5.985]
[1747538519746,126.12725304,167.09,167.02,5.985]
[1747538520449,5.9842,167.06,167.02,5.985]
[1747538520750,126.12725304,167.09,167.02,5.985]
[1747538521255,5.9845,167.05,167.02,5.985]
[1747538522452,126.12725304,167.09,167.01,5.9855]
[1747538522655,126.12725304,167.09,167.0,60.28]
[1747538522956,126.12725304,167.09,166.97,194.58984897]
[1747538523159,5.9852,167.03,167.0,5.9858]
[1747538523956,5.9852,167.03,166.99,5.9862]
[1747538524254,60.26,167.04,166.97,60.24]
[1747538524655,60.26,167.04,166.99,5.9863]
[1747538524857,60.26,167.04,166.95,5.55865487]
[1747538524858,67.45271941,167.04,166.95,5.55865487]
[1747538525059,5.27871941,167.01,166.95,5.55865487]
[1747538525255,5.27871941,166.98,166.93,7.41153983]
[1747538525451,5.9882,166.94,166.93,7.41153983]
[1747538526961,67.49111941,166.95,166.9,11.11730975]
[1747538527560,65.53871941,166.95,166.9,11.11730975]
[1747538527860,5.9886,166.93,166.9,11.11730975]
[1747538528060,60.26,166.92,166.9,11.11730975]
[1747538528254,60.26,166.91,166.9,11.11730975]
[1747538529260,60.26,166.91,166.9,17.10690975]
[1747538529559,60.26,166.91,166.9,11.11730975]
[1747538530966,60.26,166.91,166.9,17.10690975]
[1747538531461,60.26,166.91,166.9,11.11730975]
[1747538532460,60.26,166.91,166.86,14.82307967]
[1747538532760,5.9902,166.89,166.86,14.82307967]
[1747538532963,60.28,166.88,166.86,5.55427967]
[1747538533161,60.28,166.87,166.86,5.55427967]
[1747538533866,60.28,166.87,166.84,18.52884958]
[1747538534164,5.27871941,166.85,166.8,25.94038942]
[1747538534364,60.28,166.84,166.8,25.94038942]
[1747538534563,60.28,166.83,166.8,25.94038942]
[1747538535165,60.28,166.85,166.82,5.9924]
[1747538535363,60.28,166.85,166.8,25.94038942]
[1747538535759,638.12,166.89,166.81,3.8914]
[1747538535961,643.39871941,166.89,166.81,1.9838]
[1747538536264,5.9913,166.86,166.81,7.9764]
[1747538536467,60.4,166.85,166.81,1.9838]
[1747538536767,60.4,166.85,166.82,5.9922]
[1747538536968,60.42,166.88,166.81,1.9838]
[1747538537566,66.4104,166.88,166.83,5.9919]
[1747538537770,60.42,166.88,166.81,1.9838]
[1747538537970,60.42,166.88,166.8,25.94038942]
[1747538538866,5.992,166.84,166.8,31.93348942]
[1747538539074,60.46,166.84,166.8,31.93348942]
[1747538539271,60.46,166.84,166.8,25.94038942]
[1747538539576,5.9928,166.81,166.8,25.94038942]
[1747538539771,60.3,166.81,166.74,1.9076]
[1747538539973,60.46,166.8,166.72,2.0257]
[1747538540170,5.9943,166.77,166.72,8.0215]
[1747538540974,5.9943,166.77,166.72,9.22111612]
[1747538541269,60.32,166.77,166.72,1.19961612]
[1747538541466,60.46,166.76,166.72,1.19961612]
[1747538541866,5.9957,166.73,166.72,1.19961612]
[1747538542065,66.3157,166.73,166.72,1.19961612]
[1747538543374,60.32,166.73,166.65,1.9768]
[1747538543574,60.42,166.72,166.66,7.197948]
[1747538543875,5.9965,166.71,166.67,1.199976]
[1747538544573,5.9965,166.71,166.67,7.197676]
[1747538544772,5.9965,166.71,166.67,5.9977]
[1747538545172,60.42,166.72,166.65,1.9768]
[1747538545579,60.42,166.72,166.68,5.9974]
[1747538546180,60.42,166.72,166.65,1.9768]
[1747538546388,60.42,166.72,166.66,60.34]
[1747538546684,5.9954,166.74,166.66,60.34]
[1747538546878,5.9954,166.74,166.67,2.0566]
[1747538547080,60.36,166.75,166.67,2.0566]
[1747538547786,5.9964,166.72,166.67,8.0544]
[1747538548483,5.9965,166.71,166.67,8.0544]
[1747538548684,60.36,166.75,166.66,60.34]
[1747538548887,60.36,166.75,166.65,1.9768]
[1747538549086,5.9972,166.69,166.65,1.9768]
[1747538550287,66.3368,166.7,166.66,5.9982]
[1747538550585,60.34,166.7,166.65,1.9768]
[1747538550788,5.9989,166.64,166.63,2.0579]
[1747538550988,5.9989,166.64,166.6,6.0003]
[1747538551187,60.36,166.67,166.6,6.0003]
[1747538551390,5.9989,166.65,166.6,6.0003]
[1747538551689,60.36,166.67,166.6,6.0003]
[1747538552193,5.9986,166.65,166.6,6.0003]
[1747538552488,60.36,166.67,166.59,60.36]
[1747538552686,120.7,166.7,166.59,60.36]
[1747538552883,120.7,166.7,166.59,65.63871941]
[1747538553386,120.7,166.7,166.66,5.9982]
[1747538553387,126.6969,166.7,166.66,5.9982]
[1747538553591,126.6969,166.7,166.63,60.38]
[1747538553889,126.6969,166.7,166.64,3.8956]
[1747538554090,120.7,166.7,166.67,5.9977]
[1747538554290,60.48,166.72,166.65,1.9347]
[1747538554492,60.48,166.73,166.69,5.9969]
[1747538554892,60.48,166.73,166.65,1.9347]
[1747538555894,60.48,166.73,166.7,5.9965]
[1747538556091,60.48,166.73,166.67,60.38]
[1747538556484,66.4757,166.73,166.69,5.9969]
[1747538556685,66.4757,166.73,166.67,60.38]
[1747538557395,60.48,166.73,166.7,5.9967]
[1747538560797,5.58725304,166.78,166.67,60.38]
[1747538560987,120.82,166.77,166.67,60.38]
[1747538561191,120.8,166.77,166.67,60.38]
[1747538561390,5.9946,166.76,166.72,5.9959]
[1747538561991,4.98150166,166.75,166.72,5.9959]
[1747538563596,4.98150166,166.75,166.73,5.9956]
[1747538563798,4.98150166,166.74,166.71,60.38]
[1747538563999,4.98150166,166.74,166.72,3.7713]
[1747538564797,4.98150166,166.74,166.69,60.38]
[1747538564995,4.98150166,166.73,166.69,60.38]
[1747538566603,4.98150166,166.73,166.7,5.9967]
[1747538567004,4.98150166,166.72,166.7,5.9967]
[1747538567703,4.98150166,166.72,166.66,60.36]
[1747538568003,4.98150166,166.71,166.66,60.36]
[1747538569103,5.997,166.7,166.66,66.3579]
[1747538569305,4.98150166,166.71,166.65,3.7713]
[1747538569808,10.97800166,166.71,166.65,3.7713]
[1747538570104,4.98150166,166.69,166.65,3.7713]
[1747538570305,4.98150166,166.69,166.68,5.9975]
[1747538573611,4.98150166,166.7,166.69,5.9971]
[1747538574808,4.98150166,166.71,166.7,5.9968]
[1747538577908,5.58725304,166.73,166.72,5.996]
[1747538579711,5.58725304,166.75,166.72,5.996]
[1747538579911,5.58725304,166.75,166.73,5.9956]
[1747538580111,5.58725304,166.75,166.68,60.38]
[1747538580315,5.58725304,166.75,166.69,5.9969]
[1747538580913,5.9958,166.73,166.69,5.9969]
[1747538581212,60.52,166.73,166.68,5.9973]
[1747538581410,5.9962,166.72,166.68,5.9973]
[1747538581606,60.52,166.73,166.65,64.1513]
[1747538582314,60.52,166.73,166.65,124.6713]
[1747538582613,5.58725304,166.72,166.69,5.997]
[1747538584415,5.58725304,166.72,166.68,5.9974]
[1747538584711,5.58725304,166.72,166.65,124.6713]
[1747538585115,5.58725304,166.7,166.65,124.6713]
[1747538585722,5.58725304,166.7,166.69,5.9971]
[1747538588416,5.58725304,166.71,166.7,5.9967]
[1747538589917,10.60114519,166.71,166.7,5.9967]
[1747538593422,1.02584519,166.71,166.7,5.9967]
[1747538593719,7.43503161,166.73,166.72,5.996]
[1747538594320,3.161e-05,166.76,166.75,5.9949]
[1747538597723,3.161e-05,166.76,166.74,5.9952]
[1747538597921,3.161e-05,166.76,166.72,60.46]
[1747538598116,71.54269783,166.78,166.72,60.46]
[1747538598315,60.38,166.78,166.72,60.46]
[1747538599526,66.3741,166.78,166.73,5.9954]
[1747538599825,66.3741,166.78,166.74,5.9952]
[1747538600021,60.38,166.78,166.72,60.46]
[1747538601831,60.38,166.78,166.67,7.23821941]
[1747538602128,60.38,166.78,166.69,60.44]
[1747538602529,60.38,166.78,166.74,5.995]
[1747538604230,66.3739,166.78,166.74,5.995]
[1747538605232,60.38,166.78,166.72,5.9957]
[1747538605629,60.38,166.78,166.69,60.44]
[1747538606031,5.9943,166.77,166.73,5.9956]
[1747538606228,60.38,166.78,166.73,5.9956]
[1747538606832,5.9943,166.77,166.73,5.9956]
[1747538607735,5.9946,166.76,166.73,5.9956]
[1747538608233,71.54269783,166.78,166.69,60.44]
[1747538608626,73.51639783,166.78,166.69,60.44]
[1747538609535,17.15699783,166.77,166.73,5.9954]
[1747538609746,11.16269783,166.77,166.69,60.44]
[1747538609932,11.16269783,166.77,166.74,5.9951]
[1747538610440,11.16269783,166.77,166.69,60.44]
[1747538610632,11.16269783,166.77,166.75,5.9947]
[1747538612141,68.3476,166.78,166.75,5.9947]
[1747538612344,62.3537,166.78,166.75,5.9947]
[1747538615445,68.3476,166.78,166.75,5.9947]
[1747538620040,5.9942,166.77,166.74,5.9952]
[1747538622041,68.3477,166.78,166.74,5.9952]
[1747538624448,71.54269783,166.78,166.69,120.8]
[1747538625654,71.54269783,166.78,166.75,5.9948]
[1747538627364,7.47332352,166.76,166.75,5.9948]
[1747538628454,2.352e-05,166.76,166.75,5.9948]
[1747538628657,14.8835971,166.82,166.75,7.932]
[1747538628958,14.8835971,166.82,166.76,5.29476239]
[1747538629154,14.8835971,166.82,166.77,60.36]
[1747538629355,14.8835971,166.82,166.78,60.36]
[1747538629764,14.8835971,166.82,166.81,5.9928]
[1747538630652,128.7449,166.86,166.82,5.9924]
[1747538631464,128.7449,166.86,166.78,60.36]
[1747538631465,5.9914,166.85,166.8,5.9928]
[1747538631657,5.9914,166.85,166.78,60.36]
[1747538631966,5.9914,166.85,166.81,5.9926]
[1747538632265,5.9919,166.84,166.78,60.36]
[1747538632969,5.9915,166.85,166.78,60.36]
[1747538634560,5.9915,166.85,166.81,5.9927]
[1747538637070,5.9917,166.84,166.81,5.9927]
[1747538637265,120.72,166.86,166.78,60.36]
[1747538637772,5.9923,166.83,166.78,60.36]
[1747538637969,120.72,166.86,166.78,60.36]
[1747538638165,5.9915,166.85,166.78,60.36]
[1747538638367,5.9915,166.85,166.81,5.9926]
[1747538639770,5.9918,166.84,166.81,5.9926]
[1747538640171,5.9918,166.84,166.8,5.9931]
[1747538640764,5.9918,166.84,166.81,5.9928]
[1747538643174,5.9918,166.84,166.8,5.993]
[1747538643875,5.9918,166.84,166.81,5.9927]
[1747538646181,5.9921,166.83,166.8,5.993]
[1747538648380,120.72,166.86,166.77,60.34]
[1747538648985,5.9914,166.85,166.77,60.34]
[1747538650584,5.9914,166.85,166.81,5.9925]
[1747538651882,5.9914,166.85,166.82,5.9924]
[1747538652686,5.9917,166.84,166.81,5.9927]
[1747538655384,11.57617313,166.84,166.81,5.9927]
[1747538656388,5.58447313,166.84,166.77,60.34]
[1747538656789,5.58447313,166.84,166.78,62.2742]
[1747538657289,5.58447313,166.84,166.83,5.9921]
[1747538658184,2.49337313,166.84,166.83,5.9921]
[1747538658585,126.6098,166.9,166.86,5.9909]
[1747538659187,126.6098,166.9,166.87,5.9906]
[1747538660380,126.6098,166.9,166.86,5.9909]
[1747538660581,5.99,166.89,166.86,5.9909]
[1747538661387,60.32,166.9,166.82,60.3]
[1747538661788,60.3,166.91,166.82,60.3]
[1747538661789,67.74089357,166.91,166.82,60.3]
[1747538661991,5.9896,166.9,166.86,5.9908]
[1747538662188,5.9896,166.9,166.82,60.3]
[1747538662588,5.9896,166.9,166.87,5.9904]
[1747538663483,73.73019357,166.91,166.87,5.9904]
[1747538663689,73.73019357,166.91,166.88,5.9903]
[1747538663892,73.73019357,166.91,166.82,60.3]
[1747538664077,73.73019357,166.91,166.82,62.223]
[1747538664789,73.73019357,166.91,166.88,5.9902]
[1747538665183,13.43019357,166.91,166.88,5.9902]
[1747538665380,13.43019357,166.91,166.89,5.9897]
[1747538665381,60.3,166.91,166.89,5.9897]